[Event "Guimaraes Open 2018"]
[Site "Guimaraes"]
[Date "2018.10.06"]
[Round "3"]
[White "Pinheiro, Paulo Fialho"]
[Black "Gawle, Ireneusz"]
[Result "0-1"]
[ECO "C55"]
[WhiteElo "1410"]
[BlackElo "1800"]
[Annotator "NA RC"]
[PlyCount "42"]
[EventDate "2018.10.04"]
[EventType "swiss"]
[EventCountry "POR"]
[SourceTitle "playchess.com"]
[Source "ChessBase"]
[SourceQuality "1"]
[TimeControl "5400+30"]

1. e4 {[%emt 0:00:00]} e5 {[%emt 0:00:00]} 2. Bc4 {[%emt 0:00:07]} Nf6 {[%emt 0:00:01]} 3. d4 {[%emt 0:01:39]} exd4 {[%emt 0:02:08]} 4. Nf3 {[%emt 0:00:20]} Nc6 {[%emt 0:01:33]} 5. Bg5 {[%emt 0:03:02]} h6 {[%emt 0:01:51]} 6. e5 {[%emt 0:03:05]} hxg5 {[%emt 0:00:31]} 7. Nxg5 {[%emt 0:00:25]} Nxe5 {[%emt 0:01:31]} 8. Qxd4 {[%emt 0:01:36]} Nxc4 {[%emt 0:00:25]} 9. Qxc4 {[%emt 0:00:12]} d5 {[%emt 0:00:27]} 10. Qb3 {[%emt 0:01:40]} Bd6 {[%emt 0:02:21]} 11. h3 {[%emt 0:01:20]} Ng4 {[%emt 0:09:03]} 12. Nf3 {[%emt 0:04:09]} Qe7+ {[%emt 0:00:42]} 13. Kf1 {[%emt 0:01:34]} c6 {[%emt 0:14:46]} 14. Nbd2 {[%emt 0:07:41]} Be6 {[%emt 0:01:34]} 15. Re1 {[%emt 0:10:20]} O-O-O {[%emt 0:01:12]} 16. c4 {[%emt 0:08:38]} Qc7 {[%emt 0:08:50]} 17. Nd4 {[%emt 0:06:08]} dxc4 {[%emt 0:04:46]} 18. Nxc4 {[%emt 0:00:14]} Bxc4+ {[%emt 0:02:47]} 19. Qxc4 {[%emt 0:00:10]} Nxf2 {[%emt 0:01:13]} 20. Kxf2 {[%emt 0:02:09]} Bg3+ {[%emt 0:00:25]} 21. Kf1 {[%emt 0:00:07]} Qf4+ {[%emt 0:00:18]} 0-1

[Event "Guimaraes Open 2018"]
[Site "Guimaraes"]
[Date "2018.10.06"]
[Round "4"]
[White "Dias, Ricardo Pedro Cruz"]
[Black "Calzada Cruz, Osvaldo"]
[Result "1-0"]
[ECO "B10"]
[WhiteElo "2098"]
[BlackElo "1752"]
[Annotator "NA RC"]
[PlyCount "55"]
[EventDate "2018.10.04"]
[EventType "swiss"]
[EventCountry "POR"]
[SourceTitle "playchess.com"]
[Source "ChessBase"]
[SourceQuality "1"]
[TimeControl "5400+30"]

1. e4 {[%emt 0:00:00]} c6 {[%emt 0:01:54]} 2. c4 {[%emt 0:00:00]} d5 {[%emt 0:00:42]} 3. exd5 {[%emt 0:00:00]} cxd5 {[%emt 0:00:14]} 4. cxd5 {[%emt 0:00:00]} Nf6 {[%emt 0:01:25]} 5. Nc3 {[%emt 0:00:11]} Nxd5 {[%emt 0:00:30]} 6. Nf3 {[%emt 0:00:02]} g6 {[%emt 0:00:38]} 7. Bc4 {[%emt 0:02:02]} Nxc3 {[%emt 0:04:12]} 8. bxc3 {[%emt 0:00:06]} Bg7 {[%emt 0:01:40]} 9. O-O {[%emt 0:00:21]} O-O {[%emt 0:00:44]} 10. d4 {[%emt 0:01:54]} Qc7 {[%emt 0:03:53]} 11. Qb3 {[%emt 0:01:25]} Nc6 {[%emt 0:01:11]} 12. Be2 {[%emt 0:09:47]} Na5 {[%emt 0:02:31]} 13. Qb4 {[%emt 0:01:54]} Nc6 {[%emt 0:05:20]} 14. Qa3 {[%emt 0:02:50]} b6 {[%emt 0:02:21]} 15. Be3 {[%emt 0:02:47]} Na5 {[%emt 0:02:38]} 16. Nd2 {[%emt 0:04:47]} Bb7 {[%emt 0:01:23]} 17. Rac1 {[%emt 0:06:35]} Rfd8 {[%emt 0:01:23]} 18. f4 {[%emt 0:05:25]} Qc6 {[%emt 0:05:59]} 19. Rf2 {[%emt 0:09:45]} Qe6 {[%emt 0:00:36]} 20. Nf1 {[%emt 0:03:37]} Rac8 {[%emt 0:03:04]} 21. f5 {[%emt 0:07:23]} gxf5 {[%emt 0:01:26]} 22. Bg5 {[%emt 0:00:53]} f6 {[%emt 0:02:49]} 23. Bd2 {[%emt 0:02:49]} Be4 {[%emt 0:11:53]} 24. Ng3 {[%emt 0:05:37]} Nc4 {[%emt 0:07:27]} 25. Bxc4 {[%emt 0:00:11]} Rxc4 {[%emt 0:00:30]} 26. Re1 {[%emt 0:03:28]} Kf7 {[%emt 0:04:28]} 27. Nxf5 {[%emt 0:01:10]} Rc7 {[%emt 0:07:28]} 28. Ng3 {[%emt 0:00:24]} 1-0

[Event "Guimaraes Open 2018"]
[Site "Guimaraes"]
[Date "2018.10.06"]
[Round "4"]
[White "Fernandes, Joao Pedro Murtinho"]
[Black "Barrento, Jorge Maria Lopes"]
[Result "1-0"]
[ECO "B03"]
[WhiteElo "2052"]
[BlackElo "1696"]
[Annotator "NA RC"]
[PlyCount "59"]
[EventDate "2018.10.04"]
[EventType "swiss"]
[EventCountry "POR"]
[SourceTitle "playchess.com"]
[Source "ChessBase"]
[SourceQuality "1"]
[TimeControl "5400+30"]

1. e4 {[%emt 0:01:15]} Nf6 {[%emt 0:01:32]} 2. e5 {[%emt 0:00:11]} Nd5 3. d4 {[%emt 0:00:15]} d6 {[%emt 0:00:07]} 4. c4 {[%emt 0:00:14]} Nb6 {[%emt 0:00:02]} 5. exd6 {[%emt 0:00:12]} exd6 {[%emt 0:00:08]} 6. Nf3 {[%emt 0:00:24]} Be7 {[%emt 0:00:06]} 7. h3 {[%emt 0:00:42]} Nc6 {[%emt 0:12:25]} 8. d5 {[%emt 0:03:47]} Ne5 {[%emt 0:00:54]} 9. Nxe5 {[%emt 0:04:38]} dxe5 {[%emt 0:03:07]} 10. Be2 {[%emt 0:00:12]} O-O {[%emt 0:03:14]} 11. O-O {[%emt 0:00:09]} Bg5 {[%emt 0:01:29]} 12. Nc3 {[%emt 0:03:41]} Bxc1 {[%emt 0:06:49]} 13. Rxc1 {[%emt 0:01:16]} Qh4 {[%emt 0:02:21]} 14. Qd3 {[%emt 0:05:53]} f5 {[%emt 0:04:12]} 15. c5 {[%emt 0:02:16]} Nd7 {[%emt 0:03:56]} 16. d6 {[%emt 0:03:09]} cxd6 {[%emt 0:11:14]} 17. cxd6 {[%emt 0:01:06]} Kh8 {[%emt 0:07:56]} 18. Nd5 {[%emt 0:03:05]} e4 {[%emt 0:05:51]} 19. Qd4 {[%emt 0:02:30]} b6 {[%emt 0:02:48]} 20. Rc7 {[%emt 0:04:17]} Qh6 {[%emt 0:05:26]} 21. Ne7 {[%emt 0:04:58]} Nc5 {[%emt 0:02:11]} 22. Bc4 {[%emt 0:10:35]} Ne6 {[%emt 0:04:55]} 23. Qd5 {[%emt 0:02:42]} Nf4 {[%emt 0:04:24]} 24. Qxa8 {[%emt 0:03:34]} Nxh3+ {[%emt 0:00:41]} 25. gxh3 {[%emt 0:00:06]} Qxh3 {[%emt 0:00:33]} 26. Be2 {[%emt 0:00:29]} Qh4 {[%emt 0:03:18]} 27. Nxf5 {[%emt 0:00:29]} Qg5+ {[%emt 0:03:31]} 28. Ng3 {[%emt 0:00:06]} e3 {[%emt 0:00:16]} 29. Rxc8 {[%emt 0:01:04]} exf2+ {[%emt 0:01:58]} 30. Kg2 {[%emt 0:00:07]} 1-0

[Event "Guimaraes Open 2018"]
[Site "Guimaraes"]
[Date "2018.10.06"]
[Round "4"]
[White "Fidalgo, Daniel Neves"]
[Black "Monteiro, Paulo Alexandre Gom"]
[Result "1/2-1/2"]
[ECO "A34"]
[WhiteElo "1994"]
[BlackElo "1602"]
[Annotator "NA RC"]
[PlyCount "149"]
[EventDate "2018.10.04"]
[EventType "swiss"]
[EventCountry "POR"]
[SourceTitle "playchess.com"]
[Source "ChessBase"]
[SourceQuality "1"]
[TimeControl "5400+30"]

1. c4 {[%emt 0:00:00]} Nf6 {[%emt 0:00:00]} 2. Nc3 {[%emt 0:00:00]} c5 {[%emt 0:00:02]} 3. g3 {[%emt 0:00:10]} g6 {[%emt 0:00:17]} 4. Bg2 {[%emt 0:00:10]} Bg7 {[%emt 0:00:21]} 5. e4 {[%emt 0:00:22]} Nc6 {[%emt 0:00:31]} 6. Nge2 {[%emt 0:00:16]} O-O {[%emt 0:00:39]} 7. O-O {[%emt 0:00:20]} d6 {[%emt 0:00:25]} 8. d3 {[%emt 0:00:30]} a6 {[%emt 0:00:56]} 9. Bd2 {[%emt 0:04:46]} Rb8 {[%emt 0:03:07]} 10. Rc1 {[%emt 0:00:56]} b5 {[%emt 0:05:59]} 11. b3 {[%emt 0:00:27]} b4 {[%emt 0:16:46]} 12. Nb1 {[%emt 0:07:10]} Ne8 {[%emt 0:07:44]} 13. h3 {[%emt 0:06:59]} Nc7 {[%emt 0:04:03]} 14. f4 {[%emt 0:02:14]} Ne6 {[%emt 0:10:21]} 15. g4 {[%emt 0:15:27]} Ned4 {[%emt 0:04:03]} 16. Ng3 {[%emt 0:05:19]} a5 {[%emt 0:06:24]} 17. Be3 {[%emt 0:02:00]} a4 {[%emt 0:02:25]} 18. Nd2 {[%emt 0:00:15]} axb3 {[%emt 0:01:26]} 19. axb3 {[%emt 0:00:08]} Ra8 {[%emt 0:01:44]} 20. Ne2 {[%emt 0:05:38]} Nxe2+ {[%emt 0:04:41]} 21. Qxe2 {[%emt 0:00:55]} Nd4 {[%emt 0:00:12]} 22. Qd1 {[%emt 0:00:18]} Ra2 {[%emt 0:02:42]} 23. Nf3 {[%emt 0:03:04]} Ne2+ {[%emt 0:01:58]} 24. Kh1 {[%emt 0:03:08]} Nc3 {[%emt 0:01:16]} 25. Rxc3 {[%emt 0:02:29]} bxc3 {[%emt 0:00:15]} 26. d4 {[%emt 0:02:25]} c2 {[%emt 0:04:58]} 27. Qd3 {[%emt 0:01:29]} Bb7 {[%emt 0:04:32]} 28. Rc1 {[%emt 0:01:16]} Qa8 {[%emt 0:01:44]} 29. d5 {[%emt 0:02:10]} Qa3 {[%emt 0:02:46]} 30. Rxc2 {[%emt 0:02:08]} Rxc2 {[%emt 0:00:50]} 31. Qxc2 {[%emt 0:00:01]} Qa1+ {[%emt 0:00:15]} 32. Kh2 {[%emt 0:00:15]} Qc3 {[%emt 0:00:09]} 33. Qe2 {[%emt 0:06:26]} Qxb3 {[%emt 0:00:45]} 34. e5 {[%emt 0:02:18]} Ra8 {[%emt 0:02:10]} 35. f5 {[%emt 0:02:29]} Ra2 {[%emt 0:00:48]} 36. Bd2 {[%emt 0:00:51]} dxe5 {[%emt 0:00:59]} 37. Ng5 {[%emt 0:02:38]} Qc2 {[%emt 0:04:21]} 38. Ne4 {[%emt 0:01:56]} Ba6 {[%emt 0:01:01]} 39. f6 {[%emt 0:02:16]} Bf8 {[%emt 0:02:14]} 40. Qe3 {[%emt 0:04:11]} Qxc4 {[%emt 0:00:44]} 41. fxe7 {[%emt 0:00:46]} Bxe7 {[%emt 0:00:06]} 42. Qh6 {[%emt 0:00:32]} Rxd2 {[%emt 0:00:59]} 43. Qxd2 {[%emt 0:00:55]} Qe2 {[%emt 0:01:19]} 44. Qxe2 {[%emt 0:02:04]} Bxe2 {[%emt 0:00:02]} 45. d6 {[%emt 0:00:11]} Bd8 {[%emt 0:00:15]} 46. Nxc5 {[%emt 0:00:06]} Bb5 {[%emt 0:01:08]} 47. Bd5 {[%emt 0:04:03]} Kf8 {[%emt 0:00:45]} 48. Kg3 {[%emt 0:01:33]} Ke8 {[%emt 0:00:52]} 49. Kf3 {[%emt 0:00:50]} Bb6 {[%emt 0:01:26]} 50. Ne4 {[%emt 0:00:43]} Bd8 {[%emt 0:00:08]} 51. Nc3 {[%emt 0:00:46]} Bd7 {[%emt 0:00:35]} 52. Ke4 {[%emt 0:00:14]} Bf6 {[%emt 0:00:28]} 53. Na2 {[%emt 0:01:16]} Bg7 {[%emt 0:00:34]} 54. g5 {[%emt 0:02:47]} Bf5+ {[%emt 0:00:10]} 55. Ke3 {[%emt 0:00:28]} Bf8 {[%emt 0:00:27]} 56. Nc3 {[%emt 0:01:20]} Bxd6 {[%emt 0:00:29]} 57. Ne4 {[%emt 0:00:09]} Be7 {[%emt 0:00:53]} 58. h4 {[%emt 0:00:15]} Be6 {[%emt 0:00:24]} 59. Bc6+ {[%emt 0:02:30]} Bd7 {[%emt 0:00:02]} 60. Bd5 {[%emt 0:00:08]} Kf8 {[%emt 0:00:38]} 61. Nf6 {[%emt 0:00:37]} Bxf6 {[%emt 0:00:34]} 62. gxf6 {[%emt 0:00:07]} Be6 {[%emt 0:00:22]} 63. Bc6 {[%emt 0:01:04]} Bf5 {[%emt 0:00:08]} 64. Ba4 {[%emt 0:00:16]} h6 {[%emt 0:00:23]} 65. Kf3 {[%emt 0:01:10]} g5 {[%emt 0:00:53]} 66. hxg5 {[%emt 0:00:46]} hxg5 {[%emt 0:00:06]} 67. Bc6 {[%emt 0:00:10]} Kg8 {[%emt 0:00:33]} 68. Be8 {[%emt 0:00:09]} e4+ {[%emt 0:00:41]} 69. Kg3 {[%emt 0:00:06]} Be6 {[%emt 0:00:20]} 70. Bc6 {[%emt 0:00:08]} Bf5 {[%emt 0:00:37]} 71. Be8 {[%emt 0:00:05]} Kf8 {[%emt 0:01:44]} 72. Bc6 {[%emt 0:00:09]} Kg8 {[%emt 0:00:47]} 73. Be8 {[%emt 0:00:06]} Bg6 {[%emt 0:00:26]} 74. Kg4 {[%emt 0:00:20]} e3 {[%emt 0:00:32]} 75. Bb5 {[%emt 0:00:32]} 1/2-1/2

[Event "Guimaraes Open 2018"]
[Site "Guimaraes"]
[Date "2018.10.06"]
[Round "4"]
[White "Barbosa, Paulo Jorge Pereira"]
[Black "Lemos, Artur Jorge Capela "]
[Result "1-0"]
[ECO "A15"]
[WhiteElo "1982"]
[BlackElo "1598"]
[Annotator "NA RC"]
[PlyCount "45"]
[EventDate "2018.10.04"]
[EventType "swiss"]
[EventCountry "POR"]
[SourceTitle "playchess.com"]
[Source "ChessBase"]
[SourceQuality "1"]
[TimeControl "5400+30"]

1. c4 {[%emt 0:00:00]} Nf6 {[%emt 0:00:00]} 2. g3 {[%emt 0:00:00]} g6 {[%emt 0:00:00]} 3. Bg2 {[%emt 0:00:00]} Bg7 {[%emt 0:00:00]} 4. Nc3 {[%emt 0:00:00]} O-O {[%emt 0:00:06]} 5. e4 {[%emt 0:00:20]} d6 {[%emt 0:00:23]} 6. Nge2 {[%emt 0:00:09]} e5 {[%emt 0:00:45]} 7. O-O {[%emt 0:00:07]} Be6 {[%emt 0:02:18]} 8. d3 {[%emt 0:00:05]} Nbd7 {[%emt 0:01:47]} 9. b4 {[%emt 0:01:11]} c6 {[%emt 0:02:23]} 10. Rb1 {[%emt 0:06:13]} h6 {[%emt 0:04:21]} 11. b5 {[%emt 0:03:19]} cxb5 {[%emt 0:11:42]} 12. Rxb5 {[%emt 0:01:54]} b6 {[%emt 0:02:09]} 13. f4 Nc5 {[%emt 0:00:32]} 14. Rb1 {[%emt 0:04:58]} Qd7 {[%emt 0:02:29]} 15. fxe5 {[%emt 0:02:15]} dxe5 {[%emt 0:00:33]} 16. Nd5 {[%emt 0:00:15]} Nxd5 {[%emt 0:06:29]} 17. exd5 {[%emt 0:00:22]} Bh3 {[%emt 0:00:09]} 18. Be3 {[%emt 0:02:15]} Bxg2 {[%emt 0:06:15]} 19. Kxg2 {[%emt 0:00:05]} Nb7 {[%emt 0:00:12]} 20. Nc3 {[%emt 0:04:02]} Nd6 {[%emt 0:01:12]} 21. Qa4 {[%emt 0:04:12]} Qxa4 {[%emt 0:17:03]} 22. Nxa4 {[%emt 0:00:05]} e4 {[%emt 0:00:14]} 23. Bf4 {[%emt 0:01:33]} 1-0

[Event "Guimaraes Open 2018"]
[Site "Guimaraes"]
[Date "2018.10.06"]
[Round "4"]
[White "Bazan Solera, Manuel"]
[Black "Oliveira, Maria Alice Ramos M"]
[Result "1/2-1/2"]
[ECO "A05"]
[WhiteElo "1932"]
[BlackElo "1572"]
[Annotator "NA RC"]
[PlyCount "42"]
[EventDate "2018.10.04"]
[EventType "swiss"]
[EventCountry "POR"]
[SourceTitle "playchess.com"]
[Source "ChessBase"]
[SourceQuality "1"]
[TimeControl "5400+30"]

1. Nf3 {[%emt 0:00:00]} Nf6 {[%emt 0:00:00]} 2. g3 {[%emt 0:00:00]} e6 {[%emt 0:00:17]} 3. Bg2 {[%emt 0:00:00]} d5 {[%emt 0:00:49]} 4. d4 {[%emt 0:01:32]} Be7 {[%emt 0:00:20]} 5. O-O {[%emt 0:02:18]} O-O {[%emt 0:00:06]} 6. b3 {[%emt 0:01:21]} b6 {[%emt 0:04:41]} 7. c4 {[%emt 0:06:35]} Bb7 {[%emt 0:02:42]} 8. Nc3 {[%emt 0:03:00]} Nbd7 {[%emt 0:17:50]} 9. Bb2 {[%emt 0:06:02]} c5 {[%emt 0:06:39]} 10. cxd5 {[%emt 0:08:55]} Nxd5 {[%emt 0:02:40]} 11. Nxd5 {[%emt 0:00:22]} Bxd5 {[%emt 0:01:10]} 12. dxc5 {[%emt 0:10:01]} Nxc5 {[%emt 0:06:51]} 13. Rc1 {[%emt 0:02:02]} Bf6 {[%emt 0:07:16]} 14. Bxf6 {[%emt 0:05:38]} Qxf6 {[%emt 0:00:32]} 15. Qd4 {[%emt 0:00:29]} Qe7 {[%emt 0:15:27]} 16. b4 {[%emt 0:09:05]} Ne4 {[%emt 0:01:37]} 17. Ne5 {[%emt 0:01:24]} Nf6 {[%emt 0:11:44]} 18. Bxd5 {[%emt 0:14:23]} Nxd5 {[%emt 0:02:42]} 19. Nc6 {[%emt 0:00:11]} Qg5 {[%emt 0:02:00]} 20. h4 {[%emt 0:03:12]} Qh5 {[%emt 0:02:16]} 21. e4 {[%emt 0:02:36]} Nf4 {[%emt 0:02:42]} 1/2-1/2

[Event "Guimaraes Open 2018"]
[Site "Guimaraes"]
[Date "2018.10.06"]
[Round "4"]
[White "Pipiras, Filipa Fortuna"]
[Black "Palhas, Miguel Branco"]
[Result "1-0"]
[ECO "D10"]
[WhiteElo "1803"]
[BlackElo "1369"]
[Annotator "NA RC"]
[PlyCount "33"]
[EventDate "2018.10.04"]
[EventType "swiss"]
[EventCountry "POR"]
[SourceTitle "playchess.com"]
[Source "ChessBase"]
[SourceQuality "1"]
[TimeControl "5400+30"]

1. d4 {[%emt 0:00:00]} d5 {[%emt 0:00:00]} 2. c4 {[%emt 0:00:07]} c6 {[%emt 0:00:00]} 3. cxd5 {[%emt 0:00:36]} cxd5 {[%emt 0:00:04]} 4. Nc3 {[%emt 0:00:12]} Nf6 {[%emt 0:00:48]} 5. Nf3 {[%emt 0:00:17]} e6 {[%emt 0:01:50]} 6. Bf4 {[%emt 0:00:31]} Bb4 {[%emt 0:01:46]} 7. e3 {[%emt 0:01:12]} O-O {[%emt 0:05:27]} 8. Bd3 {[%emt 0:02:30]} Qa5 {[%emt 0:05:21]} 9. Qb3 {[%emt 0:04:09]} Nbd7 {[%emt 0:04:46]} 10. O-O {[%emt 0:01:59]} Bxc3 {[%emt 0:10:07]} 11. bxc3 {[%emt 0:00:54]} Nb6 {[%emt 0:01:28]} 12. Bd6 {[%emt 0:07:50]} Re8 {[%emt 0:01:35]} 13. a4 {[%emt 0:03:01]} Nc4 {[%emt 0:02:26]} 14. Bxc4 {[%emt 0:02:09]} dxc4 {[%emt 0:00:03]} 15. Qxc4 {[%emt 0:00:17]} Bd7 {[%emt 0:04:17]} 16. Bb4 {[%emt 0:03:58]} Rac8 {[%emt 0:08:13]} 17. Qxc8 {[%emt 0:01:28]} 1-0

[Event "Guimaraes Open 2018"]
[Site "Guimaraes"]
[Date "2018.10.06"]
[Round "4"]
[White "Silva, Tiago Alexandre Pin"]
[Black "Pinto, Andre Jorge Pimpare"]
[Result "1/2-1/2"]
[ECO "A11"]
[WhiteElo "1753"]
[BlackElo "1309"]
[Annotator "NA RC"]
[PlyCount "87"]
[EventDate "2018.10.04"]
[EventType "swiss"]
[EventCountry "POR"]
[SourceTitle "playchess.com"]
[Source "ChessBase"]
[SourceQuality "1"]
[TimeControl "5400+30"]

1. c4 {[%emt 0:00:00]} c6 {[%emt 0:02:04]} 2. g3 {[%emt 0:00:03]} d5 {[%emt 0:00:44]} 3. Bg2 {[%emt 0:00:49]} dxc4 {[%emt 0:06:56]} 4. Qc2 {[%emt 0:03:04]} Be6 {[%emt 0:03:09]} 5. a4 {[%emt 0:01:41]} Nf6 {[%emt 0:01:32]} 6. Na3 {[%emt 0:01:20]} Nbd7 {[%emt 0:04:57]} 7. Nf3 {[%emt 0:03:40]} Bd5 {[%emt 0:02:05]} 8. Nxc4 {[%emt 0:00:52]} e6 {[%emt 0:04:15]} 9. O-O {[%emt 0:02:25]} Be7 {[%emt 0:04:08]} 10. d3 {[%emt 0:03:31]} Bxf3 {[%emt 0:06:39]} 11. Bxf3 {[%emt 0:00:24]} Nb6 {[%emt 0:00:59]} 12. Nxb6 {[%emt 0:01:50]} Qxb6 {[%emt 0:00:16]} 13. Be3 {[%emt 0:01:04]} Qc7 {[%emt 0:01:33]} 14. a5 {[%emt 0:05:59]} a6 {[%emt 0:04:18]} 15. Bb6 {[%emt 0:05:20]} Qd7 {[%emt 0:00:11]} 16. Qc3 {[%emt 0:04:11]} O-O {[%emt 0:00:52]} 17. Ra4 {[%emt 0:04:01]} Nd5 {[%emt 0:02:04]} 18. Bxd5 {[%emt 0:02:18]} cxd5 {[%emt 0:00:08]} 19. Raa1 {[%emt 0:02:04]} Bf6 {[%emt 0:01:38]} 20. Bd4 {[%emt 0:04:21]} Rfc8 {[%emt 0:00:36]} 21. Qb4 {[%emt 0:00:41]} Bxd4 {[%emt 0:00:47]} 22. Qxd4 {[%emt 0:00:16]} Rc2 {[%emt 0:00:37]} 23. Rfc1 {[%emt 0:01:07]} Rac8 {[%emt 0:02:02]} 24. Rxc2 {[%emt 0:00:54]} Rxc2 {[%emt 0:00:06]} 25. Qf4 {[%emt 0:02:43]} Qc7 {[%emt 0:06:30]} 26. Qxc7 {[%emt 0:00:47]} Rxc7 {[%emt 0:00:05]} 27. Ra3 {[%emt 0:03:44]} Kf8 {[%emt 0:01:19]} 28. Kg2 {[%emt 0:01:03]} Rc2 {[%emt 0:01:36]} 29. Rb3 {[%emt 0:00:12]} Rc7 {[%emt 0:01:04]} 30. Kf3 {[%emt 0:00:09]} Ke7 {[%emt 0:00:11]} 31. Rb6 {[%emt 0:00:30]} Kf6 {[%emt 0:10:47]} 32. Ke3 {[%emt 0:03:52]} Ke5 {[%emt 0:03:55]} 33. f4+ {[%emt 0:00:21]} Kf5 {[%emt 0:00:15]} 34. h3 {[%emt 0:00:20]} h5 {[%emt 0:00:36]} 35. Kf3 {[%emt 0:00:27]} g6 {[%emt 0:02:48]} 36. e3 {[%emt 0:05:39]} Kf6 {[%emt 0:02:15]} 37. g4 {[%emt 0:02:50]} hxg4+ {[%emt 0:00:26]} 38. hxg4 {[%emt 0:00:23]} Ke7 {[%emt 0:01:46]} 39. f5 {[%emt 0:01:50]} gxf5 {[%emt 0:00:33]} 40. gxf5 {[%emt 0:00:07]} Kf6 {[%emt 0:09:20]} 41. fxe6 {[%emt 0:01:42]} fxe6 {[%emt 0:00:17]} 42. Kf4 {[%emt 0:01:53]} Rc5 {[%emt 0:01:27]} 43. Rxb7 {[%emt 0:01:08]} Rxa5 {[%emt 0:00:06]} 44. Kf3 {[%emt 0:01:47]} 1/2-1/2

[Event "Guimaraes Open 2018"]
[Site "Guimaraes"]
[Date "2018.10.06"]
[Round "4"]
[White "Gama, Joao Goncalo Cereje"]
[Black "Silva, Goncalo Nuno Neto P"]
[Result "0-1"]
[ECO "B06"]
[WhiteElo "1598"]
[BlackElo "1996"]
[Annotator "NA RC"]
[PlyCount "112"]
[EventDate "2018.10.04"]
[EventType "swiss"]
[EventCountry "POR"]
[SourceTitle "playchess.com"]
[Source "ChessBase"]
[SourceQuality "1"]
[TimeControl "5400+30"]

1. e4 {[%emt 0:00:00]} g6 {[%emt 0:00:00]} 2. d4 {[%emt 0:00:00]} Bg7 {[%emt 0:00:00]} 3. c3 {[%emt 0:00:43]} d6 {[%emt 0:00:28]} 4. g3 {[%emt 0:00:40]} Nd7 {[%emt 0:00:52]} 5. Bg2 {[%emt 0:00:49]} Ngf6 {[%emt 0:00:09]} 6. Ne2 {[%emt 0:00:31]} c5 {[%emt 0:00:52]} 7. O-O {[%emt 0:01:42]} O-O {[%emt 0:00:11]} 8. h3 {[%emt 0:04:01]} Rb8 {[%emt 0:01:36]} 9. a4 {[%emt 0:01:28]} b6 {[%emt 0:03:46]} 10. Be3 {[%emt 0:03:47]} Ba6 {[%emt 0:02:43]} 11. Na3 {[%emt 0:04:15]} b5 {[%emt 0:16:02]} 12. axb5 {[%emt 0:08:22]} Bxb5 {[%emt 0:00:24]} 13. Nxb5 {[%emt 0:00:17]} Rxb5 {[%emt 0:00:02]} 14. Qc2 {[%emt 0:01:24]} Qc7 {[%emt 0:02:06]} 15. Ra2 {[%emt 0:02:25]} Rfb8 {[%emt 0:04:26]} 16. Rfa1 {[%emt 0:00:31]} a6 {[%emt 0:08:53]} 17. Nf4 {[%emt 0:08:25]} cxd4 {[%emt 0:00:40]} 18. Bd2 {[%emt 0:04:03]} Ne5 {[%emt 0:15:37]} 19. Nd3 {[%emt 0:08:02]} Nfd7 {[%emt 0:02:40]} 20. f4 {[%emt 0:11:04]} Nxd3 {[%emt 0:00:25]} 21. Qxd3 {[%emt 0:00:05]} Nc5 {[%emt 0:01:22]} 22. Qc4 {[%emt 0:01:22]} Rxb2 {[%emt 0:03:57]} 23. cxd4 {[%emt 0:00:45]} Ne6 {[%emt 0:00:26]} 24. Qxc7 {[%emt 0:04:32]} Bxd4+ {[%emt 0:00:12]} 25. Kh2 {[%emt 0:00:21]} Nxc7 {[%emt 0:00:19]} 26. Rxb2 {[%emt 0:02:09]} Rxb2 {[%emt 0:00:13]} 27. Ba5 {[%emt 0:00:48]} Rxg2+ {[%emt 0:02:18]} 28. Kxg2 {[%emt 0:00:25]} Bxa1 {[%emt 0:00:01]} 29. Bxc7 {[%emt 0:00:15]} Bc3 {[%emt 0:00:08]} 30. Kf3 {[%emt 0:01:59]} Kf8 {[%emt 0:00:03]} 31. Ke3 {[%emt 0:00:24]} Ke8 {[%emt 0:00:11]} 32. Kd3 {[%emt 0:00:13]} Be1 {[%emt 0:00:47]} 33. g4 {[%emt 0:00:20]} Kd7 {[%emt 0:00:41]} 34. Bb6 {[%emt 0:00:10]} Kc6 {[%emt 0:03:48]} 35. Bd8 {[%emt 0:01:35]} e6 {[%emt 0:01:38]} 36. Kc4 {[%emt 0:00:39]} Bf2 {[%emt 0:01:44]} 37. Ba5 {[%emt 0:04:12]} d5+ {[%emt 0:01:10]} 38. exd5+ {[%emt 0:00:28]} exd5+ {[%emt 0:00:15]} 39. Kd3 {[%emt 0:00:17]} Kb5 {[%emt 0:00:40]} 40. Bc3 {[%emt 0:00:51]} a5 {[%emt 0:00:54]} 41. Bb2 {[%emt 0:00:30]} Kb4 {[%emt 0:00:18]} 42. Bc3+ {[%emt 0:00:09]} Kb5 {[%emt 0:00:14]} 43. Bb2 {[%emt 0:00:23]} a4 {[%emt 0:00:07]} 44. f5 {[%emt 0:01:03]} Kb4 {[%emt 0:00:22]} 45. Bc3+ {[%emt 0:00:45]} Kb3 {[%emt 0:00:07]} 46. Ba1 {[%emt 0:00:45]} a3 {[%emt 0:00:09]} 47. Bc3 {[%emt 0:00:19]} a2 {[%emt 0:00:07]} 48. Ba1 {[%emt 0:00:04]} Bc5 {[%emt 0:00:05]} 49. fxg6 {[%emt 0:00:23]} fxg6 {[%emt 0:00:06]} 50. h4 {[%emt 0:00:42]} Ba3 {[%emt 0:00:07]} 51. Kd4 {[%emt 0:00:41]} Bb2+ {[%emt 0:00:07]} 52. Bxb2 {[%emt 0:00:04]} Kxb2 {[%emt 0:00:07]} 53. Kxd5 {[%emt 0:00:04]} a1=Q {[%emt 0:01:36]} 54. h5 {[%emt 0:00:12]} gxh5 {[%emt 0:00:15]} 55. gxh5 {[%emt 0:00:17]} Qd1+ {[%emt 0:00:07]} 56. Ke6 {[%emt 0:00:05]} Qxh5 {[%emt 0:00:15]} 0-1